[Event "*** Titled Tuesday Blitz"]
[Site "Chess.com"]
[Date "2020.05.12"]
[Round "5"]
[White "WiktoriaPOL"]
[Black "madalin18"]
[Result "0-1"]
[WhiteElo "2008"]
[BlackElo "2184"]
[TimeControl "180+1"]
[EndTime "10:55:04 PDT"]
[Termination "madalin18 won by resignation"]

1. c4 {[%clk 0:03:00.9]} 1... Nf6 {[%clk 0:02:59.4]} 2. Nc3 {[%clk 0:03:00.4]}
2... g6 {[%clk 0:02:59.9]} 3. g3 {[%clk 0:02:59.9]} 3... Bg7 {[%clk 0:03:00.2]}
4. Bg2 {[%clk 0:03:00.2]} 4... O-O {[%clk 0:03:00.7]} 5. e4 {[%clk 0:03:00.5]}
5... d6 {[%clk 0:03:00.7]} 6. Nge2 {[%clk 0:03:00.6]} 6... c6 {[%clk 0:03:00.5]}
7. O-O {[%clk 0:02:59.7]} 7... e5 {[%clk 0:02:53.7]} 8. d3 {[%clk 0:02:59.3]}
8... Be6 {[%clk 0:02:42.7]} 9. h3 {[%clk 0:02:53.7]} 9... Qd7 {[%clk 0:02:41.5]}
10. Kh2 {[%clk 0:02:53]} 10... d5 {[%clk 0:02:31.1]} 11. cxd5 {[%clk 0:02:50.7]}
11... cxd5 {[%clk 0:02:30.8]} 12. f4 {[%clk 0:02:41.1]} 12... d4 {[%clk
0:02:25.2]} 13. fxe5 {[%clk 0:02:17.3]} 13... Nh5 {[%clk 0:02:24.4]} 14. Nd5
{[%clk 0:02:14]} 14... Bxe5 {[%clk 0:02:19.2]} 15. Nef4 {[%clk 0:01:59.3]} 15...
Nxf4 {[%clk 0:02:06.9]} 16. gxf4 {[%clk 0:01:56]} 16... Bxd5 {[%clk 0:01:54.6]}
17. fxe5 {[%clk 0:01:41.4]} 17... Be6 {[%clk 0:01:54.3]} 18. Qf3 {[%clk
0:01:35.5]} 18... Nc6 {[%clk 0:01:53]} 19. Bh6 {[%clk 0:01:31.3]} 19... Qe7
{[%clk 0:01:35.4]} 20. Bxf8 {[%clk 0:01:27.6]} 20... Rxf8 {[%clk 0:01:35.7]} 21.
Qf6 {[%clk 0:01:26.8]} 21... Qc7 {[%clk 0:01:35.4]} 22. Rac1 {[%clk 0:01:11.2]}
22... Qb8 {[%clk 0:01:35]} 23. h4 {[%clk 0:01:05.5]} 23... Nxe5 {[%clk
0:01:34.5]} 24. Kg1 {[%clk 0:00:44.3]} 24... Ng4 {[%clk 0:01:18.1]} 25. Qf4
{[%clk 0:00:40.2]} 25... Qd8 {[%clk 0:01:18.6]} 26. Qg3 {[%clk 0:00:33.6]} 26...
Ne3 {[%clk 0:01:17.6]} 27. Rf2 {[%clk 0:00:31.4]} 27... Qa5 {[%clk 0:01:04.6]}
28. a3 {[%clk 0:00:30]} 28... Rc8 {[%clk 0:01:00.1]} 29. Rxc8+ {[%clk
0:00:28.8]} 29... Bxc8 {[%clk 0:00:59.6]} 30. h5 {[%clk 0:00:27]} 30... Qe1+
{[%clk 0:00:56.4]} 31. Bf1 {[%clk 0:00:13.5]} 31... Nxf1 {[%clk 0:00:55.8]} 32.
Qf4 {[%clk 0:00:10.3]} 32... Ne3+ {[%clk 0:00:47]} 33. Kh2 {[%clk 0:00:06.8]}
33... Ng4+ {[%clk 0:00:47.5]} 34. Kg3 {[%clk 0:00:06.5]} 34... Qxf2+ {[%clk
0:00:45.8]} 35. Qxf2 {[%clk 0:00:05.7]} 35... Nxf2 {[%clk 0:00:46.2]} 36. Kxf2
{[%clk 0:00:05.8]} 36... gxh5 {[%clk 0:00:46.2]} 0-1

[Event "*** Titled Tuesday Blitz"]
[Site "Chess.com"]
[Date "2020.05.12"]
[Round "5"]
[White "XiaoKangZhong"]
[Black "Trankuilizer"]
[Result "1/2-1/2"]
[WhiteElo "2410"]
[BlackElo "2549"]
[TimeControl "180+1"]
[EndTime "10:55:05 PDT"]
[Termination "Game drawn - insufficient material"]

1. e4 {[%clk 0:03:00.9]} 1... e5 {[%clk 0:02:55.4]} 2. Nf3 {[%clk 0:02:52.5]}
2... Nc6 {[%clk 0:02:54.7]} 3. Bc4 {[%clk 0:02:49]} 3... Bc5 {[%clk 0:02:54.1]}
4. c3 {[%clk 0:02:27.8]} 4... Nf6 {[%clk 0:02:53.4]} 5. d3 {[%clk 0:02:28.4]}
5... O-O {[%clk 0:02:50.8]} 6. O-O {[%clk 0:02:28.5]} 6... d5 {[%clk 0:02:50.1]}
7. exd5 {[%clk 0:02:29.4]} 7... Nxd5 {[%clk 0:02:50.8]} 8. Nbd2 {[%clk
0:02:27.9]} 8... Nb6 {[%clk 0:02:50.7]} 9. Ne4 {[%clk 0:02:17.2]} 9... Nxc4
{[%clk 0:02:41.7]} 10. Nxc5 {[%clk 0:02:14]} 10... Nd6 {[%clk 0:02:41.6]} 11.
Qe2 {[%clk 0:02:09.1]} 11... Bg4 {[%clk 0:02:40.5]} 12. h3 {[%clk 0:02:07.8]}
12... Bh5 {[%clk 0:02:27.6]} 13. Ne4 {[%clk 0:02:07.2]} 13... Nxe4 {[%clk
0:02:17.8]} 14. Qxe4 {[%clk 0:02:07.6]} 14... Bg6 {[%clk 0:02:18.1]} 15. Qe3
{[%clk 0:01:53.6]} 15... Qxd3 {[%clk 0:02:16.6]} 16. Re1 {[%clk 0:01:48.7]}
16... Qxe3 {[%clk 0:02:13.9]} 17. Bxe3 {[%clk 0:01:48.1]} 17... Rad8 {[%clk
0:02:13.8]} 18. Rad1 {[%clk 0:01:47]} 18... f6 {[%clk 0:02:11.8]} 19. b4 {[%clk
0:01:39.7]} 19... a6 {[%clk 0:02:07]} 20. Bc5 {[%clk 0:01:35.5]} 20... Rfe8
{[%clk 0:02:05.7]} 21. a4 {[%clk 0:01:22.8]} 21... Bc2 {[%clk 0:02:04]} 22. Rxd8
{[%clk 0:01:18.5]} 22... Rxd8 {[%clk 0:02:04.9]} 23. b5 {[%clk 0:01:18.3]} 23...
axb5 {[%clk 0:02:03.2]} 24. axb5 {[%clk 0:01:19.2]} 24... Na5 {[%clk 0:02:01.5]}
25. Bb4 {[%clk 0:01:02.9]} 25... Nc4 {[%clk 0:02:00.5]} 26. Ra1 {[%clk
0:01:00.8]} 26... Rd1+ {[%clk 0:01:58.1]} 27. Rxd1 {[%clk 0:01:00.2]} 27... Bxd1
{[%clk 0:01:59]} 28. Ne1 {[%clk 0:00:59.9]} 28... Kf7 {[%clk 0:01:56.6]} 29. Kf1
{[%clk 0:00:57.9]} 29... Ke6 {[%clk 0:01:55.2]} 30. Nd3 {[%clk 0:00:57.8]} 30...
b6 {[%clk 0:01:55.1]} 31. Ke1 {[%clk 0:00:57.6]} 31... Bc2 {[%clk 0:01:55.1]}
32. Nc1 {[%clk 0:00:55.9]} 32... g5 {[%clk 0:01:49.7]} 33. g4 {[%clk 0:00:55.3]}
33... Be4 {[%clk 0:01:46]} 34. Ne2 {[%clk 0:00:51.6]} 34... Bg2 {[%clk
0:01:44.8]} 35. Ng1 {[%clk 0:00:51.6]} 35... e4 {[%clk 0:01:39]} 36. Ke2 {[%clk
0:00:47.7]} 36... f5 {[%clk 0:01:38.6]} 37. gxf5+ {[%clk 0:00:46]} 37... Kxf5
{[%clk 0:01:38.9]} 38. Be7 {[%clk 0:00:46.4]} 38... h5 {[%clk 0:01:38.3]} 39.
Bd8 {[%clk 0:00:45.1]} 39... h4 {[%clk 0:01:32.7]} 40. Bxc7 {[%clk 0:00:43.9]}
40... g4 {[%clk 0:01:25.1]} 41. hxg4+ {[%clk 0:00:43.4]} 41... Kxg4 {[%clk
0:01:26]} 42. Bb8 {[%clk 0:00:41.2]} 42... h3 {[%clk 0:01:25.3]} 43. Bc7 {[%clk
0:00:40.8]} 43... Kf5 {[%clk 0:01:24.9]} 44. f3 {[%clk 0:00:33]} 44... Ne5
{[%clk 0:01:14.9]} 45. fxe4+ {[%clk 0:00:26.9]} 45... Kxe4 {[%clk 0:01:12.4]}
46. Kf2 {[%clk 0:00:23.9]} 46... Nc4 {[%clk 0:01:09]} 47. Kg3 {[%clk 0:00:20.3]}
47... Kd3 {[%clk 0:01:04.6]} 48. Nxh3 {[%clk 0:00:20.6]} 48... Bxh3 {[%clk
0:01:00.8]} 49. Kxh3 {[%clk 0:00:20.5]} 49... Kxc3 {[%clk 0:01:01.4]} 50. Bxb6
{[%clk 0:00:21.4]} 50... Nxb6 {[%clk 0:01:01.1]} 51. Kg4 {[%clk 0:00:21.9]}
51... Kb4 {[%clk 0:01:01.3]} 52. Kf4 {[%clk 0:00:22.3]} 52... Kxb5 {[%clk
0:01:01.6]} 1/2-1/2

[Event "*** Titled Tuesday Blitz"]
[Site "Chess.com"]
[Date "2020.05.12"]
[Round "5"]
[White "Jbd735"]
[Black "GMKrikor"]
[Result "0-1"]
[WhiteElo "2438"]
[BlackElo "2811"]
[TimeControl "180+1"]
[EndTime "10:55:06 PDT"]
[Termination "GMKrikor won on time"]

1. e4 {[%clk 0:03:00.9]} 1... c5 {[%clk 0:02:59.3]} 2. Nf3 {[%clk 0:03:00.9]}
2... g6 {[%clk 0:02:55.6]} 3. d4 {[%clk 0:03:00.6]} 3... cxd4 {[%clk 0:02:55.3]}
4. Nxd4 {[%clk 0:03:01.5]} 4... Nc6 {[%clk 0:02:53.8]} 5. c4 {[%clk 0:03:01.2]}
5... Nf6 {[%clk 0:02:53.4]} 6. Nc3 {[%clk 0:02:59.9]} 6... d6 {[%clk 0:02:50.5]}
7. Be2 {[%clk 0:02:58.2]} 7... Nxd4 {[%clk 0:02:49.8]} 8. Qxd4 {[%clk
0:02:57.7]} 8... Bg7 {[%clk 0:02:50.1]} 9. Qd1 {[%clk 0:02:57.1]} 9... O-O
{[%clk 0:02:48.1]} 10. O-O {[%clk 0:02:56.8]} 10... Be6 {[%clk 0:02:46.5]} 11.
Bd2 {[%clk 0:02:14.2]} 11... a5 {[%clk 0:02:42.8]} 12. Rc1 {[%clk 0:02:13.1]}
12... a4 {[%clk 0:02:41.9]} 13. Kh1 {[%clk 0:01:55.4]} 13... Qb8 {[%clk
0:01:37.9]} 14. f3 {[%clk 0:01:51.9]} 14... Qa7 {[%clk 0:01:34.7]} 15. Nd5
{[%clk 0:01:43.3]} 15... Bxd5 {[%clk 0:01:28.4]} 16. cxd5 {[%clk 0:01:31.5]}
16... Qb6 {[%clk 0:01:28.5]} 17. Bc3 {[%clk 0:01:27.7]} 17... Nd7 {[%clk
0:01:28.4]} 18. Qd2 {[%clk 0:01:24.7]} 18... Bxc3 {[%clk 0:01:19.4]} 19. Rxc3
{[%clk 0:01:21.3]} 19... Rfc8 {[%clk 0:01:19.4]} 20. Rfc1 {[%clk 0:01:09.3]}
20... Rxc3 {[%clk 0:01:18.2]} 21. Qxc3 {[%clk 0:01:08.5]} 21... Qf2 {[%clk
0:01:13.1]} 22. Qd2 {[%clk 0:00:41.4]} 22... h5 {[%clk 0:00:51.5]} 23. Rc7
{[%clk 0:00:32.9]} 23... Ne5 {[%clk 0:00:43.8]} 24. Rxb7 {[%clk 0:00:19.3]}
24... Rc8 {[%clk 0:00:43.3]} 25. h3 {[%clk 0:00:14.6]} 25... h4 {[%clk
0:00:29.8]} 26. Qd1 {[%clk 0:00:12.8]} 26... Qe3 {[%clk 0:00:21.1]} 0-1

[Event "*** Titled Tuesday Blitz"]
[Site "Chess.com"]
[Date "2020.05.12"]
[Round "5"]
[White "rst2003"]
[Black "szefru"]
[Result "1-0"]
[WhiteElo "2449"]
[BlackElo "2094"]
[TimeControl "180+1"]
[EndTime "10:55:06 PDT"]
[Termination "rst2003 won by checkmate"]

1. b3 {[%clk 0:03:00.9]} 1... d5 {[%clk 0:02:52.2]} 2. Bb2 {[%clk 0:03:00.3]}
2... c6 {[%clk 0:02:52.3]} 3. Nf3 {[%clk 0:02:59.4]} 3... Nf6 {[%clk 0:02:51.6]}
4. e3 {[%clk 0:02:58.8]} 4... e6 {[%clk 0:02:51.7]} 5. d4 {[%clk 0:02:59.7]}
5... Nbd7 {[%clk 0:02:51.7]} 6. c4 {[%clk 0:03:00.6]} 6... Be7 {[%clk
0:02:50.9]} 7. Nc3 {[%clk 0:03:01]} 7... O-O {[%clk 0:02:50.6]} 8. Bd3 {[%clk
0:03:00.9]} 8... h6 {[%clk 0:02:49.6]} 9. O-O {[%clk 0:02:59.4]} 9... Re8 {[%clk
0:02:43.3]} 10. e4 {[%clk 0:02:59.4]} 10... dxe4 {[%clk 0:02:42.4]} 11. Nxe4
{[%clk 0:03:00.3]} 11... Nxe4 {[%clk 0:02:41.1]} 12. Bxe4 {[%clk 0:03:01.2]}
12... Nf6 {[%clk 0:02:41]} 13. Bc2 {[%clk 0:03:01.7]} 13... c5 {[%clk
0:02:25.9]} 14. Qd3 {[%clk 0:02:50.6]} 14... cxd4 {[%clk 0:02:07.8]} 15. Bxd4
{[%clk 0:02:45.3]} 15... b6 {[%clk 0:01:57.4]} 16. Rad1 {[%clk 0:02:19.4]} 16...
Bb7 {[%clk 0:01:48.7]} 17. Qe2 {[%clk 0:02:19.3]} 17... Qc8 {[%clk 0:01:34]} 18.
Ne5 {[%clk 0:02:00.1]} 18... Rd8 {[%clk 0:01:13.9]} 19. Rfe1 {[%clk 0:01:24.8]}
19... Qc7 {[%clk 0:01:10]} 20. Nxf7 {[%clk 0:01:00.1]} 20... Kxf7 {[%clk
0:01:02.5]} 21. Qxe6+ {[%clk 0:01:00.6]} 21... Kf8 {[%clk 0:00:56.9]} 22. Bg6
{[%clk 0:01:00.4]} 22... Bd6 {[%clk 0:00:28.8]} 23. Bxf6 {[%clk 0:00:53]} 23...
Bxh2+ {[%clk 0:00:22.6]} 24. Kh1 {[%clk 0:00:42.1]} 24... gxf6 {[%clk
0:00:14.9]} 25. Rxd8+ {[%clk 0:00:32.3]} 25... Rxd8 {[%clk 0:00:12.6]} 26. Qxf6+
{[%clk 0:00:32.8]} 26... Kg8 {[%clk 0:00:10.4]} 27. Bf7+ {[%clk 0:00:33.3]}
27... Kh7 {[%clk 0:00:04.6]} 28. Qg6+ {[%clk 0:00:32]} 28... Kh8 {[%clk
0:00:04.5]} 29. Qxh6# {[%clk 0:00:32.6]} 1-0

[Event "*** Titled Tuesday Blitz"]
[Site "Chess.com"]
[Date "2020.05.12"]
[Round "5"]
[White "YaWaleriy"]
[Black "Ariadna_Atreides"]
[Result "1-0"]
[WhiteElo "2225"]
[BlackElo "2069"]
[TimeControl "180+1"]
[EndTime "10:55:06 PDT"]
[Termination "YaWaleriy won on time"]

1. d4 {[%clk 0:02:59.5]} 1... e6 {[%clk 0:02:59.5]} 2. Nf3 {[%clk 0:02:58.9]}
2... Nf6 {[%clk 0:02:58.6]} 3. c4 {[%clk 0:02:58.5]} 3... Bb4+ {[%clk 0:02:58]}
4. Nbd2 {[%clk 0:02:58.3]} 4... O-O {[%clk 0:02:55.8]} 5. e3 {[%clk 0:02:58.7]}
5... b6 {[%clk 0:02:54.4]} 6. Bd3 {[%clk 0:02:58.9]} 6... Bb7 {[%clk 0:02:54.1]}
7. O-O {[%clk 0:02:59.5]} 7... d5 {[%clk 0:02:50.9]} 8. b3 {[%clk 0:02:59.6]}
8... Nbd7 {[%clk 0:02:44.3]} 9. Bb2 {[%clk 0:02:59.7]} 9... Ne4 {[%clk
0:02:34.2]} 10. Rc1 {[%clk 0:02:55.1]} 10... f5 {[%clk 0:02:29.8]} 11. Qc2
{[%clk 0:02:46.9]} 11... Rc8 {[%clk 0:02:22.8]} 12. Nb1 {[%clk 0:02:33.8]} 12...
Be7 {[%clk 0:02:11.2]} 13. Qe2 {[%clk 0:02:30.9]} 13... c5 {[%clk 0:02:04.2]}
14. cxd5 {[%clk 0:02:30.3]} 14... exd5 {[%clk 0:02:01.8]} 15. Rfd1 {[%clk
0:02:22]} 15... Qe8 {[%clk 0:01:44.3]} 16. Ba6 {[%clk 0:02:16.4]} 16... Bxa6
{[%clk 0:01:15.7]} 17. Qxa6 {[%clk 0:02:15.2]} 17... cxd4 {[%clk 0:00:59.8]} 18.
Nxd4 {[%clk 0:02:08.7]} 18... Nec5 {[%clk 0:00:34.7]} 19. Qe2 {[%clk 0:02:01.2]}
19... Nf6 {[%clk 0:00:27.2]} 20. Nxf5 {[%clk 0:01:50.3]} 20... Qd7 {[%clk
0:00:14.7]} 21. Bxf6 {[%clk 0:01:37.6]} 21... Bxf6 {[%clk 0:00:13.1]} 22. Nd4
{[%clk 0:01:29.9]} 22... Qf7 {[%clk 0:00:11.7]} 23. Nc3 {[%clk 0:01:28]} 23...
Rcd8 {[%clk 0:00:09.8]} 24. f3 {[%clk 0:01:23]} 24... a6 {[%clk 0:00:08.2]} 25.
b4 {[%clk 0:01:21.3]} 25... Ne6 {[%clk 0:00:06.5]} 26. Qxa6 {[%clk 0:01:20.5]}
26... Nxd4 {[%clk 0:00:05.9]} 27. exd4 {[%clk 0:01:20.3]} 27... Ra8 {[%clk
0:00:05.9]} 28. Qb5 {[%clk 0:01:15.9]} 28... Rab8 {[%clk 0:00:05.4]} 29. Qxd5
{[%clk 0:01:13.9]} 29... Rfd8 {[%clk 0:00:04.1]} 30. Qxf7+ {[%clk 0:01:13]}
30... Kxf7 {[%clk 0:00:04.5]} 31. d5 {[%clk 0:01:13]} 31... Ra8 {[%clk
0:00:02.8]} 32. Rd2 {[%clk 0:01:09.7]} 32... Ra3 {[%clk 0:00:03.3]} 33. Ne4
{[%clk 0:01:08.5]} 33... Be5 {[%clk 0:00:02.8]} 34. d6 {[%clk 0:01:04.2]} 34...
Bf4 {[%clk 0:00:02.5]} 35. Rc7+ {[%clk 0:01:02]} 35... Kf8 {[%clk 0:00:01.6]}
36. Rdc2 {[%clk 0:01:01.3]} 36... Be3+ {[%clk 0:00:01.2]} 37. Kf1 {[%clk
0:01:01]} 37... Rda8 {[%clk 0:00:01.2]} 38. Rc8+ {[%clk 0:00:58.6]} 38... Kf7
{[%clk 0:00:01.2]} 39. d7 {[%clk 0:00:56.7]} 1-0

[Event "*** Titled Tuesday Blitz"]
[Site "Chess.com"]
[Date "2020.05.12"]
[Round "5"]
[White "Caterpiller35"]
[Black "MiroVlasenko"]
[Result "0-1"]
[WhiteElo "2365"]
[BlackElo "2612"]
[TimeControl "180+1"]
[EndTime "10:55:08 PDT"]
[Termination "MiroVlasenko won by resignation"]

1. d4 {[%clk 0:03:00]} 1... f5 {[%clk 0:02:57.7]} 2. Nc3 {[%clk 0:02:55.8]} 2...
Nf6 {[%clk 0:02:55.7]} 3. Bg5 {[%clk 0:02:55.8]} 3... e6 {[%clk 0:02:55.4]} 4.
e4 {[%clk 0:02:53.1]} 4... fxe4 {[%clk 0:02:55.5]} 5. Nxe4 {[%clk 0:02:54]} 5...
Be7 {[%clk 0:02:56.1]} 6. Bxf6 {[%clk 0:02:52.3]} 6... Bxf6 {[%clk 0:02:56.1]}
7. Nf3 {[%clk 0:02:53.2]} 7... O-O {[%clk 0:02:49.4]} 8. Bd3 {[%clk 0:02:53]}
8... Nc6 {[%clk 0:02:49.2]} 9. c3 {[%clk 0:02:52.4]} 9... d5 {[%clk 0:02:49.1]}
10. Nxf6+ {[%clk 0:02:44.7]} 10... Qxf6 {[%clk 0:02:50]} 11. Qe2 {[%clk
0:02:44.3]} 11... Bd7 {[%clk 0:02:45.1]} 12. O-O {[%clk 0:02:36.8]} 12... Be8
{[%clk 0:02:45.3]} 13. Rfe1 {[%clk 0:02:34]} 13... Bh5 {[%clk 0:02:43.3]} 14.
Qxe6+ {[%clk 0:02:29.7]} 14... Qxe6 {[%clk 0:02:43.2]} 15. Rxe6 {[%clk
0:02:30.6]} 15... Bxf3 {[%clk 0:02:42.9]} 16. gxf3 {[%clk 0:02:31.5]} 16... Rxf3
{[%clk 0:02:43.2]} 17. Bc2 {[%clk 0:02:25.8]} 17... Raf8 {[%clk 0:02:37.5]} 18.
Rf1 {[%clk 0:02:16.7]} 18... Na5 {[%clk 0:02:20.3]} 19. Bb3 {[%clk 0:01:41.9]}
19... c6 {[%clk 0:02:11.8]} 20. Kg2 {[%clk 0:01:27.7]} 20... Rd3 {[%clk
0:01:59.7]} 21. Rfe1 {[%clk 0:01:20.8]} 21... Rd2 {[%clk 0:01:57.8]} 22. R1e2
{[%clk 0:01:17]} 22... Rxe2 {[%clk 0:01:57.8]} 23. Rxe2 {[%clk 0:01:15.4]} 23...
Kf7 {[%clk 0:01:58.6]} 24. Bc2 {[%clk 0:00:58.7]} 24... Nc4 {[%clk 0:01:52.4]}
25. b3 {[%clk 0:00:58.3]} 25... Nd6 {[%clk 0:01:51.5]} 26. Bd3 {[%clk
0:00:58.5]} 26... g6 {[%clk 0:01:46.9]} 27. c4 {[%clk 0:00:49.2]} 27... Re8
{[%clk 0:01:44.1]} 28. Rxe8 {[%clk 0:00:33.3]} 28... Kxe8 {[%clk 0:01:38.2]} 29.
Kf3 {[%clk 0:00:32.9]} 29... Ke7 {[%clk 0:01:38.1]} 30. Kf4 {[%clk 0:00:31.5]}
30... Kf6 {[%clk 0:01:37.2]} 31. h4 {[%clk 0:00:31.6]} 31... Ne8 {[%clk
0:01:29.7]} 32. f3 {[%clk 0:00:22.2]} 32... Nc7 {[%clk 0:01:28.5]} 33. Ke3
{[%clk 0:00:17.9]} 33... h6 {[%clk 0:01:22.7]} 34. a3 {[%clk 0:00:13.8]} 34...
g5 {[%clk 0:01:19.6]} 35. hxg5+ {[%clk 0:00:13.8]} 35... Kxg5 {[%clk 0:01:19.6]}
36. f4+ {[%clk 0:00:11.8]} 36... Kg4 {[%clk 0:01:14.4]} 37. f5 {[%clk 0:00:12]}
37... Kg5 {[%clk 0:01:14.4]} 38. Kf3 {[%clk 0:00:09.1]} 38... Ne8 {[%clk
0:01:12.4]} 39. c5 {[%clk 0:00:08.8]} 39... Ng7 {[%clk 0:01:11.3]} 40. f6 {[%clk
0:00:08.9]} 40... Kxf6 {[%clk 0:01:11.4]} 41. Kg4 {[%clk 0:00:09.3]} 41... Ne6
{[%clk 0:01:11.1]} 0-1

[Event "*** Titled Tuesday Blitz"]
[Site "Chess.com"]
[Date "2020.05.12"]
[Round "5"]
[White "peixe64"]
[Black "Masterbeaterr"]
[Result "0-1"]
[WhiteElo "2168"]
[BlackElo "2337"]
[TimeControl "180+1"]
[EndTime "10:55:11 PDT"]
[Termination "Masterbeaterr won by resignation"]

1. d4 {[%clk 0:03:00.9]} 1... d5 {[%clk 0:02:59.6]} 2. c4 {[%clk 0:03:01]} 2...
dxc4 {[%clk 0:02:59.5]} 3. e3 {[%clk 0:02:58.5]} 3... Be6 {[%clk 0:02:59.1]} 4.
Nf3 {[%clk 0:02:42.4]} 4... c6 {[%clk 0:02:58.6]} 5. Ng5 {[%clk 0:02:26]} 5...
Qa5+ {[%clk 0:02:57.3]} 6. Nc3 {[%clk 0:02:11.7]} 6... Qxg5 {[%clk 0:02:58.2]}
7. e4 {[%clk 0:02:10.7]} 7... Qa5 {[%clk 0:02:55.8]} 8. d5 {[%clk 0:02:10.3]}
8... cxd5 {[%clk 0:02:52.8]} 9. exd5 {[%clk 0:02:11.2]} 9... Bd7 {[%clk
0:02:52.6]} 10. Bxc4 {[%clk 0:02:08.4]} 10... b5 {[%clk 0:02:45.8]} 11. Bb3
{[%clk 0:02:07.3]} 11... b4 {[%clk 0:02:45.3]} 12. Ne4 {[%clk 0:02:04.3]} 12...
Nf6 {[%clk 0:02:41]} 13. Nxf6+ {[%clk 0:02:01.8]} 13... exf6 {[%clk 0:02:39.6]}
14. O-O {[%clk 0:02:01]} 14... Bd6 {[%clk 0:02:38.3]} 15. Re1+ {[%clk
0:02:00.9]} 15... Kd8 {[%clk 0:02:31.1]} 16. Bd2 {[%clk 0:01:46.4]} 16... Na6
{[%clk 0:02:27]} 17. a3 {[%clk 0:01:46.5]} 17... Nc7 {[%clk 0:02:21.3]} 18. axb4
{[%clk 0:01:43.4]} 18... Qb6 {[%clk 0:02:21.1]} 19. Re4 {[%clk 0:01:36.9]} 19...
Re8 {[%clk 0:02:14.5]} 20. Be3 {[%clk 0:01:35.9]} 20... Qb7 {[%clk 0:02:12]} 21.
Rxe8+ {[%clk 0:01:34.6]} 21... Bxe8 {[%clk 0:02:08.5]} 22. Bc5 {[%clk
0:01:33.7]} 22... Nb5 {[%clk 0:02:06.5]} 23. Ra5 {[%clk 0:01:26.5]} 23... a6
{[%clk 0:02:03.4]} 24. Qd2 {[%clk 0:01:19.9]} 24... Qc7 {[%clk 0:01:58.1]} 25.
Qe3 {[%clk 0:01:03.1]} 25... Bxc5 {[%clk 0:01:49]} 26. Qxc5 {[%clk 0:00:59.7]}
26... Qxc5 {[%clk 0:01:46.6]} 27. bxc5 {[%clk 0:01:00.6]} 27... Kc7 {[%clk
0:01:46.4]} 28. Bc4 {[%clk 0:00:53.1]} 28... Bd7 {[%clk 0:01:33.3]} 29. d6+
{[%clk 0:00:47.2]} 29... Kb7 {[%clk 0:01:28.8]} 30. Bxf7 {[%clk 0:00:37.9]}
30... Rc8 {[%clk 0:01:27.1]} 31. b4 {[%clk 0:00:37.4]} 31... Nd4 {[%clk
0:01:22.5]} 32. Bd5+ {[%clk 0:00:35.1]} 32... Bc6 {[%clk 0:01:21.5]} 33. Bc4
{[%clk 0:00:35.6]} 33... Bb5 {[%clk 0:01:20.2]} 34. Bd5+ {[%clk 0:00:35.5]}
34... Nc6 {[%clk 0:01:19.5]} 35. Ra1 {[%clk 0:00:32.1]} 35... Re8 {[%clk
0:01:19.1]} 36. Rd1 {[%clk 0:00:26.5]} 36... Kc8 {[%clk 0:01:16.7]} 37. d7+
{[%clk 0:00:20.5]} 37... Kxd7 {[%clk 0:01:14.6]} 38. Bf7+ {[%clk 0:00:21.2]}
38... Ke7 {[%clk 0:01:14.3]} 39. Bxe8 {[%clk 0:00:21.1]} 39... Kxe8 {[%clk
0:01:15.2]} 40. f3 {[%clk 0:00:20.6]} 40... Nxb4 {[%clk 0:01:14.5]} 41. Rd6
{[%clk 0:00:20.2]} 41... Nc6 {[%clk 0:01:13]} 42. Kf2 {[%clk 0:00:20.1]} 42...
a5 {[%clk 0:01:12.1]} 43. Ke3 {[%clk 0:00:20.5]} 43... a4 {[%clk 0:01:12.4]} 44.
Rd2 {[%clk 0:00:21.1]} 44... Ne5 {[%clk 0:01:10.2]} 45. Kd4 {[%clk 0:00:20.4]}
45... Nc4 {[%clk 0:01:07.7]} 46. Ra2 {[%clk 0:00:20.9]} 46... Kd7 {[%clk
0:01:06.6]} 47. Kc3 {[%clk 0:00:21.4]} 47... Kc6 {[%clk 0:01:06.3]} 48. Kb4
{[%clk 0:00:22]} 48... Ne5 {[%clk 0:01:02.1]} 49. Rb2 {[%clk 0:00:20.6]} 49...
Nd3+ {[%clk 0:01:01.7]} 50. Kc3 {[%clk 0:00:19.8]} 50... Nxb2 {[%clk 0:01:02.6]}
51. Kxb2 {[%clk 0:00:20.7]} 51... Kxc5 {[%clk 0:01:03.5]} 0-1

[Event "*** Titled Tuesday Blitz"]
[Site "Chess.com"]
[Date "2020.05.12"]
[Round "5"]
[White "pollo2016"]
[Black "Baby_Legs"]
[Result "0-1"]
[WhiteElo "2557"]
[BlackElo "2723"]
[TimeControl "180+1"]
[EndTime "10:55:12 PDT"]
[Termination "Baby_Legs won by resignation"]

1. d4 {[%clk 0:03:00.9]} 1... d5 {[%clk 0:02:59.5]} 2. c4 {[%clk 0:02:58.5]}
2... e6 {[%clk 0:02:59.6]} 3. Nc3 {[%clk 0:02:57]} 3... Bb4 {[%clk 0:02:59.6]}
4. cxd5 {[%clk 0:02:51.8]} 4... exd5 {[%clk 0:03:00.5]} 5. Bf4 {[%clk
0:02:52.1]} 5... c6 {[%clk 0:03:00.6]} 6. e3 {[%clk 0:02:51.9]} 6... Bf5 {[%clk
0:03:00.2]} 7. Qb3 {[%clk 0:02:46.6]} 7... Qb6 {[%clk 0:02:55.7]} 8. a3 {[%clk
0:02:40.3]} 8... Be7 {[%clk 0:02:51.9]} 9. Qa2 {[%clk 0:02:04.5]} 9... Nf6
{[%clk 0:02:51.1]} 10. Nf3 {[%clk 0:02:03.6]} 10... Nbd7 {[%clk 0:02:49.5]} 11.
h3 {[%clk 0:02:03.2]} 11... O-O {[%clk 0:02:41.1]} 12. Be2 {[%clk 0:02:00.6]}
12... Rfe8 {[%clk 0:02:25.3]} 13. O-O {[%clk 0:01:57.6]} 13... h6 {[%clk
0:02:25.3]} 14. b4 {[%clk 0:01:56.5]} 14... Ne4 {[%clk 0:02:11.2]} 15. Na4
{[%clk 0:01:31.9]} 15... Qd8 {[%clk 0:02:10.4]} 16. Rac1 {[%clk 0:01:32.2]}
16... Bd6 {[%clk 0:01:56.6]} 17. Bxd6 {[%clk 0:01:25.1]} 17... Nxd6 {[%clk
0:01:57.5]} 18. Nc5 {[%clk 0:01:24.9]} 18... a6 {[%clk 0:01:34]} 19. a4 {[%clk
0:01:18.6]} 19... Nxc5 {[%clk 0:01:22.9]} 20. dxc5 {[%clk 0:01:10]} 20... Ne4
{[%clk 0:01:22.1]} 21. Qb2 {[%clk 0:01:03.8]} 21... Qd7 {[%clk 0:01:11.1]} 22.
Rfd1 {[%clk 0:00:48]} 22... Re6 {[%clk 0:01:00.8]} 23. Bf1 {[%clk 0:00:46.5]}
23... Rf6 {[%clk 0:00:56.8]} 24. Nd4 {[%clk 0:00:38.6]} 24... Re8 {[%clk
0:00:42.9]} 25. f3 {[%clk 0:00:29.1]} 25... Ng3 {[%clk 0:00:41.4]} 26. Re1
{[%clk 0:00:29.4]} 26... Rg6 {[%clk 0:00:36.2]} 27. Kh2 {[%clk 0:00:20.6]} 27...
Qc7 {[%clk 0:00:35.6]} 28. f4 {[%clk 0:00:20.4]} 28... Be4 {[%clk 0:00:31.9]}
29. Qf2 {[%clk 0:00:17.4]} 29... Nxf1+ {[%clk 0:00:30.6]} 30. Rxf1 {[%clk
0:00:16.9]} 30... Rxg2+ {[%clk 0:00:29.9]} 31. Qxg2 {[%clk 0:00:16.7]} 31...
Bxg2 {[%clk 0:00:30.8]} 32. Kxg2 {[%clk 0:00:17.2]} 32... Rxe3 {[%clk
0:00:30.7]} 33. Rce1 {[%clk 0:00:17.3]} 33... Qe7 {[%clk 0:00:28]} 34. Nf5
{[%clk 0:00:16.8]} 34... Qe4+ {[%clk 0:00:27.2]} 0-1